[Event "Titled Tuesday Blitz May 25 2021"]
[White "Saya, Ethan"]
[Black "Bok, Benjamin"]
[WhiteFideId "26095181"]
[BlackFideId "1017063"]
[WhiteElo "2241"]
[BlackElo "2674"]
[Result "0-1"]
[Round "01"]
[TimeControl "180+1"]
[Date "2021.05.25"]
[WhiteClock "0:00:01"]
[BlackClock "0:00:10"]

1. e4 {[%clk 0:03:00]}  c5 {[%clk 0:03:00]} 2. Nc3 {[%clk 0:03:00]}  d6 {[%clk 0:03:00]} 3. d4 {[%clk 0:03:00]}  cxd4 {[%clk 0:03:01]} 4. Qxd4 {[%clk 0:03:00]}  Nc6 {[%clk 0:03:01]} 5. Bb5 {[%clk 0:03:00]}  Bd7 {[%clk 0:02:54]} 6. Bxc6 {[%clk 0:02:59]}  Bxc6 {[%clk 0:02:53]} 7. Nf3 {[%clk 0:03:00]}  Nf6 {[%clk 0:02:53]} 8. Bg5 {[%clk 0:02:59]}  e6 {[%clk 0:02:51]} 9. O-O-O {[%clk 0:02:59]}  Be7 {[%clk 0:02:49]} 10. Bxf6 {[%clk 0:03:00]}  Bxf6 {[%clk 0:02:44]} 11. Qxd6 {[%clk 0:03:00]}  Qxd6 {[%clk 0:02:39]} 12. Rxd6 {[%clk 0:03:01]}  Bxc3 {[%clk 0:02:14]} 13. bxc3 {[%clk 0:03:01]}  Bxe4 {[%clk 0:02:14]} 14. Ne5 {[%clk 0:03:01]}  Rc8 {[%clk 0:02:00]} 15. Kb2 {[%clk 0:03:01]}  Rc5 {[%clk 0:01:36]} 16. Rhd1 {[%clk 0:02:58]}  O-O {[%clk 0:01:30]} 17. Nd7 {[%clk 0:02:41]}  Rb5+ {[%clk 0:01:30]} 18. Kc1 {[%clk 0:02:41]}  Rc8 {[%clk 0:01:24]} 19. Nc5 {[%clk 0:02:14]}  Bd5 {[%clk 0:01:17]} 20. c4 {[%clk 0:02:15]}  Rbxc5 {[%clk 0:01:15]} 21. cxd5 {[%clk 0:02:15]}  Rxc2+ {[%clk 0:01:10]} 22. Kb1 {[%clk 0:02:15]}  Rxf2 {[%clk 0:01:11]} 23. dxe6 {[%clk 0:02:13]}  fxe6 {[%clk 0:01:11]} 24. Rd8+ {[%clk 0:02:01]}  Rxd8 {[%clk 0:01:10]} 25. Rxd8+ {[%clk 0:02:02]}  Kf7 {[%clk 0:01:05]} 26. Rd7+ {[%clk 0:02:02]}  Kf6 {[%clk 0:01:05]} 27. Rxb7 {[%clk 0:02:02]}  Rxg2 {[%clk 0:01:05]} 28. Rxa7 {[%clk 0:02:01]}  Rxh2 {[%clk 0:01:04]} 29. a4 {[%clk 0:02:01]}  h5 {[%clk 0:00:54]} 30. a5 {[%clk 0:01:58]}  h4 {[%clk 0:00:45]} 31. a6 {[%clk 0:01:57]}  Rd2 {[%clk 0:00:44]} 32. Ra8 {[%clk 0:01:43]}  Rd7 {[%clk 0:00:41]} 33. Kc2 {[%clk 0:01:33]}  h3 {[%clk 0:00:33]} 34. Rh8 {[%clk 0:01:20]}  Ra7 {[%clk 0:00:33]} 35. Rxh3 {[%clk 0:01:19]}  Rxa6 {[%clk 0:00:34]} 36. Kd2 {[%clk 0:01:19]}  Ra2+ {[%clk 0:00:32]} 37. Ke1 {[%clk 0:01:19]}  g5 {[%clk 0:00:32]} 38. Kf1 {[%clk 0:01:18]}  Kf5 {[%clk 0:00:29]} 39. Rf3+ {[%clk 0:01:17]}  Ke4 {[%clk 0:00:29]} 40. Rf8 {[%clk 0:01:16]}  e5 {[%clk 0:00:29]} 41. Rg8 {[%clk 0:01:15]}  g4 {[%clk 0:00:24]} 42. Ke1 {[%clk 0:00:55]}  Ke3 {[%clk 0:00:21]} 43. Kf1 {[%clk 0:00:50]}  e4 {[%clk 0:00:20]} 44. Kg1 {[%clk 0:00:44]}  Kf3 {[%clk 0:00:20]} 45. Rg7 {[%clk 0:00:35]}  Ke3 {[%clk 0:00:18]} 46. Rxg4 {[%clk 0:00:33]}  Kf3 {[%clk 0:00:16]} 47. Rg8 {[%clk 0:00:31]}  Ra1+ {[%clk 0:00:15]} 48. Kh2 {[%clk 0:00:30]}  e3 {[%clk 0:00:16]} 49. Rf8+ {[%clk 0:00:28]}  Ke2 {[%clk 0:00:14]} 50. Kg2 {[%clk 0:00:28]}  Kd2 {[%clk 0:00:11]} 51. Rd8+ {[%clk 0:00:25]}  Ke1 {[%clk 0:00:11]} 52. Rb8 {[%clk 0:00:24]}  e2 {[%clk 0:00:11]} 53. Rb7 {[%clk 0:00:13]}  Kd2 {[%clk 0:00:09]} 54. Rd7+ {[%clk 0:00:03]}  Kc3 {[%clk 0:00:09]} 55. Rc7+ {[%clk 0:00:02]}  Kd4 {[%clk 0:00:09]} 56. Rd7+ {[%clk 0:00:02]}  Kc5 {[%clk 0:00:10]} 57. Re7 {[%clk 0:00:01]}  e1=Q {[%clk 0:00:10]} 0-1


[Site "https://www.chess.com"]

[Event "Titled Tuesday Blitz May 25 2021"]
[White "Seletsky, Grigory"]
[Black "Kovalev, Vladislav"]
[WhiteFideId "14112191"]
[BlackFideId "13504398"]
[WhiteElo "2492"]
[BlackElo "2573"]
[Result "0-1"]
[Round "01"]
[TimeControl "180+1"]
[Date "2021.05.25"]
[WhiteClock "0:00:43"]
[BlackClock "0:01:17"]

1. e4 {[%clk 0:02:59]}  e5 {[%clk 0:03:00]} 2. Nf3 {[%clk 0:02:58]}  Nc6 {[%clk 0:03:00]} 3. Bc4 {[%clk 0:02:57]}  Nf6 {[%clk 0:03:00]} 4. Ng5 {[%clk 0:02:56]}  d5 {[%clk 0:03:00]} 5. exd5 {[%clk 0:02:56]}  Na5 {[%clk 0:03:01]} 6. Bb5+ {[%clk 0:02:56]}  c6 {[%clk 0:03:02]} 7. dxc6 {[%clk 0:02:56]}  bxc6 {[%clk 0:03:03]} 8. Bd3 {[%clk 0:02:55]}  Nd5 {[%clk 0:02:58]} 9. Nf3 {[%clk 0:02:53]}  Bd6 {[%clk 0:02:59]} 10. O-O {[%clk 0:02:49]}  O-O {[%clk 0:02:59]} 11. Re1 {[%clk 0:02:48]}  f5 {[%clk 0:03:00]} 12. Nxe5 {[%clk 0:02:44]}  Qf6 {[%clk 0:03:00]} 13. Nc4 {[%clk 0:02:37]}  Nxc4 {[%clk 0:02:50]} 14. Bxc4 {[%clk 0:02:37]}  Qh4 {[%clk 0:02:46]} 15. Bxd5+ {[%clk 0:02:36]}  cxd5 {[%clk 0:02:47]} 16. g3 {[%clk 0:01:55]}  Qh3 {[%clk 0:02:47]} 17. f4 {[%clk 0:01:48]}  d4 {[%clk 0:02:22]} 18. Qf3 {[%clk 0:01:38]}  Rb8 {[%clk 0:02:22]} 19. d3 {[%clk 0:01:18]}  Bb7 {[%clk 0:02:21]} 20. Qf2 {[%clk 0:01:18]}  Rbe8 {[%clk 0:02:20]} 21. Bd2 {[%clk 0:01:11]}  Rxe1+ {[%clk 0:01:17]} 22. Bxe1 {[%clk 0:01:10]}  g5 {[%clk 0:01:18]} 23. Bd2 {[%clk 0:01:00]}  gxf4 {[%clk 0:01:17]} 24. Bxf4 {[%clk 0:00:44]}  Bxf4 {[%clk 0:01:17]} 25. gxf4 {[%clk 0:00:43]}  Kf7 {[%clk 0:01:17]} 0-1


[Site "https://www.chess.com"]

[Event "Titled Tuesday Blitz May 25 2021"]
[White "Srihari L R"]
[Black "Fisabilillah, Ummi"]
[WhiteFideId "46617116"]
[BlackFideId "7104804"]
[WhiteElo "2121"]
[BlackElo "2091"]
[Result "1-0"]
[Round "01"]
[TimeControl "180+1"]
[Date "2021.05.25"]
[WhiteClock "0:00:34"]
[BlackClock "0:00:19"]

1. c4 {[%clk 0:02:59]}  Nf6 {[%clk 0:02:59]} 2. Nc3 {[%clk 0:02:59]}  e5 {[%clk 0:02:53]} 3. g3 {[%clk 0:02:56]}  Bb4 {[%clk 0:02:49]} 4. Bg2 {[%clk 0:02:55]}  O-O {[%clk 0:02:49]} 5. Nf3 {[%clk 0:02:54]}  Bxc3 {[%clk 0:02:48]} 6. bxc3 {[%clk 0:02:50]}  d6 {[%clk 0:02:43]} 7. O-O {[%clk 0:02:48]}  Nc6 {[%clk 0:02:39]} 8. d3 {[%clk 0:02:46]}  Rb8 {[%clk 0:02:34]} 9. Rb1 {[%clk 0:02:44]}  Bf5 {[%clk 0:02:25]} 10. e4 {[%clk 0:02:43]}  Bd7 {[%clk 0:02:09]} 11. h3 {[%clk 0:02:40]}  Qc8 {[%clk 0:02:08]} 12. Kh2 {[%clk 0:02:39]}  h6 {[%clk 0:02:06]} 13. Be3 {[%clk 0:02:37]}  Re8 {[%clk 0:02:04]} 14. Re1 {[%clk 0:02:32]}  Ne7 {[%clk 0:01:52]} 15. c5 {[%clk 0:02:24]}  Ng6 {[%clk 0:01:47]} 16. cxd6 {[%clk 0:02:16]}  cxd6 {[%clk 0:01:47]} 17. c4 {[%clk 0:02:17]}  a6 {[%clk 0:01:46]} 18. Rb6 {[%clk 0:02:14]}  Bc6 {[%clk 0:01:45]} 19. Qd2 {[%clk 0:02:11]}  Nd7 {[%clk 0:01:43]} 20. Rbb1 {[%clk 0:02:09]}  Nc5 {[%clk 0:01:37]} 21. h4 {[%clk 0:02:04]}  Nf8 {[%clk 0:01:30]} 22. h5 {[%clk 0:01:54]}  Qg4 {[%clk 0:01:28]} 23. Nh4 {[%clk 0:01:52]}  Bd7 {[%clk 0:01:13]} 24. Qd1 {[%clk 0:01:35]}  Qxd1 {[%clk 0:01:10]} 25. Rexd1 {[%clk 0:01:35]}  Bg4 {[%clk 0:01:10]} 26. Bf3 {[%clk 0:01:32]}  Bxf3 {[%clk 0:01:09]} 27. Nxf3 {[%clk 0:01:33]}  Nfe6 {[%clk 0:01:08]} 28. Rb6 {[%clk 0:01:31]}  Red8 {[%clk 0:01:01]} 29. Kg2 {[%clk 0:01:14]}  Na4 {[%clk 0:01:00]} 30. Rb3 {[%clk 0:01:11]}  Nac5 {[%clk 0:01:00]} 31. Rb4 {[%clk 0:01:08]}  b5 {[%clk 0:00:55]} 32. cxb5 {[%clk 0:01:07]}  axb5 {[%clk 0:00:56]} 33. d4 {[%clk 0:01:01]}  exd4 {[%clk 0:00:42]} 34. Nxd4 {[%clk 0:01:00]}  Ra8 {[%clk 0:00:42]} 35. Nxb5 {[%clk 0:00:58]}  Rxa2 {[%clk 0:00:40]} 36. Rxd6 {[%clk 0:00:54]}  Rb8 {[%clk 0:00:26]} 37. Rd5 {[%clk 0:00:41]}  Nxe4 {[%clk 0:00:26]} 38. Rxe4 {[%clk 0:00:39]}  Ra5 {[%clk 0:00:22]} 39. Nc3 {[%clk 0:00:37]}  Ra3 {[%clk 0:00:19]} 40. Ne2 {[%clk 0:00:36]}  Rb2 {[%clk 0:00:19]} 41. Bc1 {[%clk 0:00:34]} 1-0


[Site "https://www.chess.com"]

[Event "Titled Tuesday Blitz May 25 2021"]
[White "Sztokbant, Bernardo Vainzoff"]
[Black "Quparadze, Giga"]
[WhiteFideId "2115956"]
[BlackFideId "13602250"]
[WhiteElo "2264"]
[BlackElo "2658"]
[Result "1/2-1/2"]
[Round "01"]
[TimeControl "180+1"]
[Date "2021.05.25"]
[WhiteClock "0:00:19"]
[BlackClock "0:00:24"]

1. d4 {[%clk 0:03:00]}  Nf6 {[%clk 0:02:59]} 2. c4 {[%clk 0:02:59]}  e6 {[%clk 0:02:59]} 3. Nf3 {[%clk 0:02:58]}  b6 {[%clk 0:02:59]} 4. g3 {[%clk 0:02:58]}  Ba6 {[%clk 0:02:59]} 5. Qc2 {[%clk 0:02:58]}  Bb4+ {[%clk 0:02:51]} 6. Bd2 {[%clk 0:02:56]}  c5 {[%clk 0:02:51]} 7. Bg2 {[%clk 0:02:54]}  Nc6 {[%clk 0:02:51]} 8. dxc5 {[%clk 0:02:45]}  bxc5 {[%clk 0:02:45]} 9. O-O {[%clk 0:02:42]}  O-O {[%clk 0:02:45]} 10. a3 {[%clk 0:02:41]}  Bxd2 {[%clk 0:02:44]} 11. Nbxd2 {[%clk 0:02:42]}  Rb8 {[%clk 0:02:44]} 12. Rab1 {[%clk 0:02:38]}  Qb6 {[%clk 0:02:42]} 13. Rfd1 {[%clk 0:02:30]}  d5 {[%clk 0:02:39]} 14. cxd5 {[%clk 0:02:26]}  exd5 {[%clk 0:02:40]} 15. e3 {[%clk 0:02:25]}  Rfd8 {[%clk 0:02:33]} 16. b3 {[%clk 0:02:09]}  Be2 {[%clk 0:02:25]} 17. Rdc1 {[%clk 0:02:08]}  d4 {[%clk 0:01:38]} 18. Qxc5 {[%clk 0:02:03]}  Qxc5 {[%clk 0:01:38]} 19. Rxc5 {[%clk 0:02:03]}  dxe3 {[%clk 0:01:38]} 20. fxe3 {[%clk 0:02:04]}  Ne7 {[%clk 0:01:39]} 21. Nd4 {[%clk 0:02:01]}  Bd3 {[%clk 0:01:37]} 22. Rbc1 {[%clk 0:01:58]}  h6 {[%clk 0:01:37]} 23. b4 {[%clk 0:01:58]}  Ng4 {[%clk 0:01:36]} 24. R1c3 {[%clk 0:01:51]}  Bg6 {[%clk 0:01:32]} 25. Rc7 {[%clk 0:01:50]}  Nd5 {[%clk 0:01:31]} 26. Bxd5 {[%clk 0:01:50]}  Rxd5 {[%clk 0:01:32]} 27. Rxa7 {[%clk 0:01:45]}  Re8 {[%clk 0:01:32]} 28. Nf1 {[%clk 0:01:45]}  Be4 {[%clk 0:01:28]} 29. h3 {[%clk 0:01:29]}  Nxe3 {[%clk 0:01:26]} 30. Rxe3 {[%clk 0:01:28]}  Rxd4 {[%clk 0:01:26]} 31. g4 {[%clk 0:01:23]}  Rc8 {[%clk 0:01:26]} 32. Ng3 {[%clk 0:01:15]}  Bg6 {[%clk 0:01:18]} 33. Rae7 {[%clk 0:01:08]}  Rc1+ {[%clk 0:01:15]} 34. Re1 {[%clk 0:01:04]}  Rc2 {[%clk 0:01:04]} 35. R7e2 {[%clk 0:01:04]}  Rc3 {[%clk 0:00:58]} 36. Re3 {[%clk 0:01:04]}  Rdd3 {[%clk 0:00:56]} 37. Rxd3 {[%clk 0:01:01]}  Rxd3 {[%clk 0:00:43]} 38. Kg2 {[%clk 0:00:57]}  Rxa3 {[%clk 0:00:42]} 39. Re8+ {[%clk 0:00:55]}  Kh7 {[%clk 0:00:41]} 40. Rb8 {[%clk 0:00:56]}  Rb3 {[%clk 0:00:41]} 41. b5 {[%clk 0:00:50]}  Rb2+ {[%clk 0:00:38]} 42. Kf3 {[%clk 0:00:50]}  Rb3+ {[%clk 0:00:38]} 43. Kf2 {[%clk 0:00:49]}  Bd3 {[%clk 0:00:37]} 44. b6 {[%clk 0:00:47]}  Kg6 {[%clk 0:00:37]} 45. h4 {[%clk 0:00:39]}  Bc4 {[%clk 0:00:34]} 46. Ne4 {[%clk 0:00:36]}  Bd5 {[%clk 0:00:33]} 47. Nc5 {[%clk 0:00:32]}  Rb5 {[%clk 0:00:32]} 48. Nd7 {[%clk 0:00:31]}  Be6 {[%clk 0:00:31]} 49. Nf8+ {[%clk 0:00:29]}  Kf6 {[%clk 0:00:30]} 50. Nxe6 {[%clk 0:00:29]}  Kxe6 {[%clk 0:00:31]} 51. b7 {[%clk 0:00:25]}  Kf6 {[%clk 0:00:29]} 52. Kf3 {[%clk 0:00:24]}  Rb4 {[%clk 0:00:29]} 53. Kg3 {[%clk 0:00:22]}  Kg6 {[%clk 0:00:28]} 54. Kf3 {[%clk 0:00:21]}  Kf6 {[%clk 0:00:27]} 55. Kg3 {[%clk 0:00:21]}  g5 {[%clk 0:00:26]} 56. hxg5+ {[%clk 0:00:21]}  hxg5 {[%clk 0:00:27]} 57. Kf3 {[%clk 0:00:21]}  Rb3+ {[%clk 0:00:24]} 58. Ke4 {[%clk 0:00:19]}  Rb1 {[%clk 0:00:24]} 1/2-1/2


[Site "https://www.chess.com"]

[Event "Titled Tuesday Blitz May 25 2021"]
[White "Tari, Aryan"]
[Black "Yirik, Volkan"]
[WhiteFideId "1510045"]
[BlackFideId "6300782"]
[WhiteElo "2656"]
[BlackElo "2458"]
[Result "1-0"]
[Round "01"]
[TimeControl "180+1"]
[Date "2021.05.25"]
[WhiteClock "0:00:31"]
[BlackClock "0:00:42"]

1. Nf3 {[%clk 0:02:55]}  Nf6 {[%clk 0:02:58]} 2. c4 {[%clk 0:02:55]}  g6 {[%clk 0:02:59]} 3. Nc3 {[%clk 0:02:52]}  Bg7 {[%clk 0:03:00]} 4. e4 {[%clk 0:02:51]}  O-O {[%clk 0:03:00]} 5. d4 {[%clk 0:02:51]}  d6 {[%clk 0:03:00]} 6. Be2 {[%clk 0:02:51]}  e5 {[%clk 0:03:00]} 7. d5 {[%clk 0:02:51]}  a5 {[%clk 0:02:55]} 8. Bg5 {[%clk 0:02:49]}  Na6 {[%clk 0:02:53]} 9. Nd2 {[%clk 0:02:49]}  Nc5 {[%clk 0:02:52]} 10. h4 {[%clk 0:02:49]}  h6 {[%clk 0:02:51]} 11. Be3 {[%clk 0:02:48]}  b6 {[%clk 0:02:51]} 12. g4 {[%clk 0:02:44]}  a4 {[%clk 0:02:42]} 13. g5 {[%clk 0:02:39]}  hxg5 {[%clk 0:02:33]} 14. hxg5 {[%clk 0:02:39]}  Nh7 {[%clk 0:02:33]} 15. Qc2 {[%clk 0:02:32]}  Nxg5 {[%clk 0:02:30]} 16. O-O-O {[%clk 0:02:32]}  f5 {[%clk 0:02:28]} 17. Rdg1 {[%clk 0:02:27]}  f4 {[%clk 0:02:26]} 18. Bxc5 {[%clk 0:02:27]}  bxc5 {[%clk 0:02:26]} 19. Bg4 {[%clk 0:02:25]}  a3 {[%clk 0:02:22]} 20. b3 {[%clk 0:02:24]}  f3 {[%clk 0:02:07]} 21. Bxc8 {[%clk 0:02:05]}  Rxc8 {[%clk 0:01:53]} 22. Rg4 {[%clk 0:01:49]}  Rf4 {[%clk 0:01:51]} 23. Rhg1 {[%clk 0:01:50]}  Rxg4 {[%clk 0:01:51]} 24. Rxg4 {[%clk 0:01:50]}  Bh6 {[%clk 0:01:49]} 25. Qd1 {[%clk 0:01:47]}  Qf6 {[%clk 0:01:47]} 26. Kb1 {[%clk 0:01:44]}  Kg7 {[%clk 0:01:42]} 27. Nf1 {[%clk 0:01:38]}  Rf8 {[%clk 0:01:41]} 28. Ng3 {[%clk 0:01:36]}  Kh7 {[%clk 0:01:41]} 29. Qh1 {[%clk 0:01:35]}  Nf7 {[%clk 0:01:32]} 30. Nb5 {[%clk 0:01:30]}  Qe7 {[%clk 0:01:23]} 31. Nxa3 {[%clk 0:01:09]}  Ng5 {[%clk 0:01:19]} 32. Nb5 {[%clk 0:01:09]}  Rf7 {[%clk 0:01:13]} 33. a4 {[%clk 0:01:08]}  Qf6 {[%clk 0:01:11]} 34. a5 {[%clk 0:01:06]}  Kg7 {[%clk 0:01:09]} 35. Rh4 {[%clk 0:01:03]}  Nxe4 {[%clk 0:00:51]} 36. Nxe4 {[%clk 0:00:59]}  Qf5 {[%clk 0:00:51]} 37. a6 {[%clk 0:00:37]}  Bg5 {[%clk 0:00:44]} 38. Rh7+ {[%clk 0:00:30]}  Kg8 {[%clk 0:00:44]} 39. Rh8+ {[%clk 0:00:31]}  Kg7 {[%clk 0:00:42]} 40. Qh7# {[%clk 0:00:31]} 1-0


[Site "https://www.chess.com"]

[Event "Titled Tuesday Blitz May 25 2021"]
[White "Triapishko, Alexandr"]
[Black "Golubev, Mikhail"]
[WhiteFideId "14122286"]
[BlackFideId "14100983"]
[WhiteElo "2490"]
[BlackElo "2374"]
[Result "0-1"]
[Round "01"]
[TimeControl "180+1"]
[Date "2021.05.25"]
[WhiteClock "0:00:04"]
[BlackClock "0:00:14"]

1. Nf3 {[%clk 0:03:00]}  d6 {[%clk 0:02:59]} 2. e4 {[%clk 0:02:48]}  c5 {[%clk 0:02:58]} 3. d4 {[%clk 0:02:23]}  cxd4 {[%clk 0:02:56]} 4. Nxd4 {[%clk 0:02:23]}  Nf6 {[%clk 0:02:56]} 5. Nc3 {[%clk 0:02:24]}  g6 {[%clk 0:02:55]} 6. Nf3 {[%clk 0:02:22]}  Nc6 {[%clk 0:02:33]} 7. e5 {[%clk 0:02:13]}  Nxe5 {[%clk 0:02:06]} 8. Nxe5 {[%clk 0:02:12]}  dxe5 {[%clk 0:02:07]} 9. Qxd8+ {[%clk 0:02:08]}  Kxd8 {[%clk 0:02:07]} 10. Bg5 {[%clk 0:01:48]}  Be6 {[%clk 0:01:38]} 11. O-O-O {[%clk 0:01:23]}  Kc7 {[%clk 0:01:38]} 12. f4 {[%clk 0:00:43]}  h6 {[%clk 0:01:38]} 13. Nb5+ {[%clk 0:00:31]}  Kc6 {[%clk 0:01:38]} 14. Bh4 {[%clk 0:00:20]}  a6 {[%clk 0:01:19]} 15. fxe5 {[%clk 0:00:12]}  axb5 {[%clk 0:01:18]} 16. exf6 {[%clk 0:00:12]}  Rxa2 {[%clk 0:01:16]} 17. fxe7 {[%clk 0:00:08]}  Ra1+ {[%clk 0:01:08]} 18. Kd2 {[%clk 0:00:08]}  Rxd1+ {[%clk 0:01:08]} 19. Kxd1 {[%clk 0:00:09]}  Bg7 {[%clk 0:01:08]} 20. Bd3 {[%clk 0:00:03]}  g5 {[%clk 0:01:01]} 21. Be4+ {[%clk 0:00:03]}  Kd7 {[%clk 0:01:00]} 22. Bf2 {[%clk 0:00:02]}  Kxe7 {[%clk 0:00:59]} 23. c3 {[%clk 0:00:03]}  Rd8+ {[%clk 0:00:56]} 24. Kc2 {[%clk 0:00:03]}  Bd5 {[%clk 0:00:56]} 25. Bc5+ {[%clk 0:00:03]}  Ke6 {[%clk 0:00:54]} 26. Bd3 {[%clk 0:00:02]}  Bxg2 {[%clk 0:00:53]} 27. Re1+ {[%clk 0:00:02]}  Kd5 {[%clk 0:00:51]} 28. Bb6 {[%clk 0:00:03]}  Rd6 {[%clk 0:00:42]} 29. Bf2 {[%clk 0:00:02]}  Re6 {[%clk 0:00:40]} 30. Ra1 {[%clk 0:00:02]}  Be4 {[%clk 0:00:38]} 31. Ra5 {[%clk 0:00:03]}  Bxd3+ {[%clk 0:00:37]} 32. Kxd3 {[%clk 0:00:04]}  Kc6 {[%clk 0:00:34]} 33. Ra8 {[%clk 0:00:04]}  f5 {[%clk 0:00:33]} 34. Rg8 {[%clk 0:00:04]}  Be5 {[%clk 0:00:31]} 35. Rc8+ {[%clk 0:00:04]}  Kd7 {[%clk 0:00:30]} 36. Rf8 {[%clk 0:00:04]}  Bxh2 {[%clk 0:00:26]} 37. Rxf5 {[%clk 0:00:04]}  Be5 {[%clk 0:00:24]} 38. Rf7+ {[%clk 0:00:02]}  Kc6 {[%clk 0:00:24]} 39. Rf8 {[%clk 0:00:02]}  Rf6 {[%clk 0:00:23]} 40. Rc8+ {[%clk 0:00:01]}  Kd7 {[%clk 0:00:23]} 41. Rc5 {[%clk 0:00:02]}  Bd6 {[%clk 0:00:21]} 42. Rxb5 {[%clk 0:00:02]}  Rxf2 {[%clk 0:00:21]} 43. Rxb7+ {[%clk 0:00:03]}  Bc7 {[%clk 0:00:21]} 44. b4 {[%clk 0:00:02]}  g4 {[%clk 0:00:21]} 45. b5 {[%clk 0:00:02]}  Kc8 {[%clk 0:00:21]} 46. Ra7 {[%clk 0:00:02]}  g3 {[%clk 0:00:20]} 47. Ra8+ {[%clk 0:00:02]}  Kb7 {[%clk 0:00:19]} 48. Rg8 {[%clk 0:00:01]}  g2 {[%clk 0:00:19]} 49. c4 {[%clk 0:00:01]}  Bh2 {[%clk 0:00:19]} 50. Rg7+ {[%clk 0:00:01]}  Kb6 {[%clk 0:00:18]} 51. Rg6+ {[%clk 0:00:02]}  Kc5 {[%clk 0:00:17]} 52. Rc6+ {[%clk 0:00:02]}  Kb4 {[%clk 0:00:16]} 53. Rg6 {[%clk 0:00:03]}  g1=Q {[%clk 0:00:16]} 54. Rxg1 {[%clk 0:00:03]}  Bxg1 {[%clk 0:00:16]} 55. b6 {[%clk 0:00:04]}  Rf7 {[%clk 0:00:15]} 56. c5 {[%clk 0:00:04]}  Bxc5 {[%clk 0:00:14]} 0-1


[Site "https://www.chess.com"]

[Event "Titled Tuesday Blitz May 25 2021"]
[White "Tymrakiewicz, Rafal"]
[Black "Ghimpu, Samuel-Timotei"]
[WhiteFideId "1108832"]
[BlackFideId "1238175"]
[WhiteElo "2172"]
[BlackElo "2026"]
[Result "0-1"]
[Round "01"]
[TimeControl "180+1"]
[Date "2021.05.25"]
[WhiteClock "0:00:05"]
[BlackClock "0:00:08"]

1. e4 {[%clk 0:02:59]}  g6 {[%clk 0:02:57]} 2. d4 {[%clk 0:02:58]}  Bg7 {[%clk 0:02:57]} 3. Be3 {[%clk 0:02:59]}  d6 {[%clk 0:02:57]} 4. Nc3 {[%clk 0:02:55]}  a6 {[%clk 0:02:56]} 5. a4 {[%clk 0:02:53]}  b6 {[%clk 0:02:53]} 6. Qd2 {[%clk 0:02:50]}  Bb7 {[%clk 0:02:51]} 7. Bc4 {[%clk 0:02:46]}  Nf6 {[%clk 0:02:44]} 8. d5 {[%clk 0:02:23]}  c6 {[%clk 0:02:32]} 9. Nge2 {[%clk 0:02:17]}  Nbd7 {[%clk 0:02:24]} 10. O-O {[%clk 0:01:57]}  Rc8 {[%clk 0:02:16]} 11. dxc6 {[%clk 0:01:54]}  Rxc6 {[%clk 0:02:08]} 12. Ba2 {[%clk 0:01:52]}  O-O {[%clk 0:02:03]} 13. Rfd1 {[%clk 0:01:32]}  Ne5 {[%clk 0:01:50]} 14. Nd4 {[%clk 0:01:09]}  Rc8 {[%clk 0:01:43]} 15. Qe2 {[%clk 0:01:02]}  Rxc3 {[%clk 0:01:29]} 16. bxc3 {[%clk 0:01:01]}  Nxe4 {[%clk 0:01:30]} 17. Bd2 {[%clk 0:00:52]}  Qc8 {[%clk 0:01:26]} 18. Rab1 {[%clk 0:00:47]}  Qc7 {[%clk 0:00:55]} 19. Be1 {[%clk 0:00:41]}  Nd7 {[%clk 0:00:38]} 20. Qc4 {[%clk 0:00:33]}  Qb8 {[%clk 0:00:34]} 21. f3 {[%clk 0:00:31]}  Nec5 {[%clk 0:00:21]} 22. Bf2 {[%clk 0:00:27]}  e6 {[%clk 0:00:21]} 23. Bb3 {[%clk 0:00:21]}  Rc8 {[%clk 0:00:21]} 24. Qe2 {[%clk 0:00:21]}  Nf6 {[%clk 0:00:18]} 25. Bg3 {[%clk 0:00:21]}  Nd5 {[%clk 0:00:17]} 26. Bxd5 {[%clk 0:00:18]}  Bxd5 {[%clk 0:00:18]} 27. c4 {[%clk 0:00:16]}  Ba8 {[%clk 0:00:17]} 28. c3 {[%clk 0:00:13]}  e5 {[%clk 0:00:17]} 29. Nc2 {[%clk 0:00:12]}  Nxa4 {[%clk 0:00:17]} 30. Rb3 {[%clk 0:00:09]}  Qc7 {[%clk 0:00:16]} 31. Ne3 {[%clk 0:00:09]}  Nc5 {[%clk 0:00:14]} 32. Ra3 {[%clk 0:00:08]}  a5 {[%clk 0:00:13]} 33. Bf2 {[%clk 0:00:08]}  Ne6 {[%clk 0:00:13]} 34. Nd5 {[%clk 0:00:08]}  Bxd5 {[%clk 0:00:13]} 35. cxd5 {[%clk 0:00:08]}  Nc5 {[%clk 0:00:13]} 36. Qb5 {[%clk 0:00:08]}  e4 {[%clk 0:00:13]} 37. Bd4 {[%clk 0:00:07]}  exf3 {[%clk 0:00:12]} 38. Bxg7 {[%clk 0:00:07]}  Kxg7 {[%clk 0:00:13]} 39. gxf3 {[%clk 0:00:07]}  Qe7 {[%clk 0:00:12]} 40. Qf1 {[%clk 0:00:04]}  Re8 {[%clk 0:00:11]} 41. Ra2 {[%clk 0:00:03]}  Qf6 {[%clk 0:00:11]} 42. Re2 {[%clk 0:00:01]}  Rc8 {[%clk 0:00:07]} 43. Red2 {[%clk 0:00:01]}  a4 {[%clk 0:00:08]} 44. Rd4 {[%clk 0:00:01]}  Ra8 {[%clk 0:00:05]} 45. Qf2 {[%clk 0:00:02]}  a3 {[%clk 0:00:04]} 46. Rb4 {[%clk 0:00:03]}  a2 {[%clk 0:00:04]} 47. Ra1 {[%clk 0:00:03]}  Qxc3 {[%clk 0:00:04]} 48. Qd4+ {[%clk 0:00:03]}  Qxd4+ {[%clk 0:00:04]} 49. Rxd4 {[%clk 0:00:04]}  Nb3 {[%clk 0:00:05]} 50. Rdd1 {[%clk 0:00:04]}  Nxa1 {[%clk 0:00:05]} 51. Rxa1 {[%clk 0:00:05]}  b5 {[%clk 0:00:06]} 52. Kf2 {[%clk 0:00:06]}  b4 {[%clk 0:00:07]} 53. Ke3 {[%clk 0:00:06]}  b3 {[%clk 0:00:07]} 54. Kd3 {[%clk 0:00:05]}  b2 {[%clk 0:00:08]} 0-1


[Site "https://www.chess.com"]